[Event "*** Titled Tuesday Blitz"]
[Site "Chess.com"]
[Date "2020.11.24"]
[Round "4"]
[White "CheckThis4"]
[Black "OsorioFernando"]
[Result "0-1"]
[WhiteElo "2548"]
[BlackElo "2346"]
[TimeControl "180+1"]
[EndTime "10:53:09 PST"]
[Termination "OsorioFernando won by resignation"]

1. d4 {[%clk 0:03:00.9]} 1... d5 {[%clk 0:02:58.4]} 2. c4 {[%clk 0:03:00.6]}
2... e6 {[%clk 0:02:58.5]} 3. Nc3 {[%clk 0:03:00.1]} 3... f5 {[%clk 0:02:57.5]}
4. g4 {[%clk 0:02:57.2]} 4... fxg4 {[%clk 0:02:55.1]} 5. e4 {[%clk 0:02:57]}
5... Nf6 {[%clk 0:02:48]} 6. e5 {[%clk 0:02:53.8]} 6... Ne4 {[%clk 0:02:42.5]}
7. Qxg4 {[%clk 0:02:46.8]} 7... Nxc3 {[%clk 0:02:37.4]} 8. bxc3 {[%clk
0:02:46.1]} 8... c5 {[%clk 0:02:30.5]} 9. Bd3 {[%clk 0:02:33.1]} 9... dxc4
{[%clk 0:02:15.7]} 10. Qh5+ {[%clk 0:02:30.7]} 10... Kd7 {[%clk 0:02:07.2]} 11.
Bxc4 {[%clk 0:02:26.2]} 11... Nc6 {[%clk 0:01:59.6]} 12. Nf3 {[%clk 0:02:07.3]}
12... Kc7 {[%clk 0:01:50.5]} 13. Bg5 {[%clk 0:01:59.9]} 13... Be7 {[%clk
0:01:42.7]} 14. O-O {[%clk 0:01:40.8]} 14... g6 {[%clk 0:01:40.5]} 15. Qh6
{[%clk 0:01:34.3]} 15... Rf8 {[%clk 0:01:33]} 16. Bxe7 {[%clk 0:01:18.3]} 16...
Qxe7 {[%clk 0:01:32.4]} 17. Ng5 {[%clk 0:01:18.2]} 17... Rf5 {[%clk 0:01:31.7]}
18. f4 {[%clk 0:01:14.7]} 18... Bd7 {[%clk 0:01:27.5]} 19. Rad1 {[%clk
0:01:00.8]} 19... Raf8 {[%clk 0:01:25.3]} 20. Qxh7 {[%clk 0:00:50.6]} 20...
Rxg5+ {[%clk 0:01:13.6]} 21. fxg5 {[%clk 0:00:43.6]} 21... Rxf1+ {[%clk
0:01:11.5]} 0-1

[Event "*** Titled Tuesday Blitz"]
[Site "Chess.com"]
[Date "2020.11.24"]
[Round "4"]
[White "burbur555"]
[Black "TigrVShlyape"]
[Result "0-1"]
[WhiteElo "2602"]
[BlackElo "2819"]
[TimeControl "180+1"]
[EndTime "10:53:16 PST"]
[Termination "TigrVShlyape won by resignation"]

1. d4 {[%clk 0:03:00.9]} 1... Nf6 {[%clk 0:02:59]} 2. Nf3 {[%clk 0:03:00]} 2...
g6 {[%clk 0:02:58.4]} 3. Bf4 {[%clk 0:02:59]} 3... Bg7 {[%clk 0:02:57.4]} 4. e3
{[%clk 0:02:57.9]} 4... O-O {[%clk 0:02:56.2]} 5. Be2 {[%clk 0:02:57.3]} 5... b6
{[%clk 0:02:55.9]} 6. O-O {[%clk 0:02:56.8]} 6... Bb7 {[%clk 0:02:56.2]} 7. h3
{[%clk 0:02:56.7]} 7... d6 {[%clk 0:02:56.4]} 8. Bh2 {[%clk 0:02:54.6]} 8...
Nbd7 {[%clk 0:02:56.3]} 9. a4 {[%clk 0:02:54]} 9... a6 {[%clk 0:02:55.2]} 10. c4
{[%clk 0:02:53.3]} 10... Re8 {[%clk 0:02:49.8]} 11. a5 {[%clk 0:02:52.3]} 11...
bxa5 {[%clk 0:02:42.8]} 12. Nbd2 {[%clk 0:02:50.4]} 12... c5 {[%clk 0:02:41.1]}
13. Nb3 {[%clk 0:02:49.8]} 13... Bxf3 {[%clk 0:02:26.3]} 14. Bxf3 {[%clk
0:02:48.8]} 14... Rc8 {[%clk 0:02:23.9]} 15. Nxa5 {[%clk 0:02:45.5]} 15... Qb6
{[%clk 0:02:21.7]} 16. Qd2 {[%clk 0:02:23.2]} 16... cxd4 {[%clk 0:02:06.7]} 17.
exd4 {[%clk 0:02:22.2]} 17... e5 {[%clk 0:02:06.2]} 18. dxe5 {[%clk 0:02:13.6]}
18... Nxe5 {[%clk 0:02:03.4]} 19. Be2 {[%clk 0:02:08.4]} 19... Ne4 {[%clk
0:02:01.7]} 20. Qf4 {[%clk 0:01:38.2]} 20... f5 {[%clk 0:01:56.8]} 21. Rfb1
{[%clk 0:01:34.2]} 21... Bf6 {[%clk 0:01:49.9]} 22. Qe3 {[%clk 0:01:26.8]} 22...
Qxe3 {[%clk 0:01:33.7]} 23. fxe3 {[%clk 0:01:26.8]} 23... Bh4 {[%clk 0:01:21.5]}
24. Bxe5 {[%clk 0:01:18.1]} 24... Rxe5 {[%clk 0:01:19.4]} 25. Rf1 {[%clk
0:01:03]} 25... Bg5 {[%clk 0:01:16.7]} 26. Ra3 {[%clk 0:01:00]} 26... Ng3 {[%clk
0:01:15.2]} 27. Re1 {[%clk 0:00:57.7]} 27... Bxe3+ {[%clk 0:01:13.7]} 28. Kh2
{[%clk 0:00:56.5]} 28... Bf2 {[%clk 0:01:12.8]} 29. Rxg3 {[%clk 0:00:54.5]}
29... Bxe1 {[%clk 0:01:11.3]} 0-1

[Event "*** Titled Tuesday Blitz"]
[Site "Chess.com"]
[Date "2020.11.24"]
[Round "4"]
[White "smshk35"]
[Black "Meri-Arabidze"]
[Result "1-0"]
[WhiteElo "2485"]
[BlackElo "2605"]
[TimeControl "180+1"]
[EndTime "10:53:22 PST"]
[Termination "smshk35 won by resignation"]

1. e4 {[%clk 0:03:00.9]} 1... c5 {[%clk 0:03:00]} 2. Nf3 {[%clk 0:03:01]} 2...
e6 {[%clk 0:03:00.9]} 3. d4 {[%clk 0:03:00.9]} 3... cxd4 {[%clk 0:03:01.8]} 4.
Nxd4 {[%clk 0:03:01.5]} 4... Nc6 {[%clk 0:03:02.2]} 5. Nc3 {[%clk 0:03:00.1]}
5... a6 {[%clk 0:03:02]} 6. a3 {[%clk 0:02:58]} 6... Nf6 {[%clk 0:03:00.6]} 7.
Nxc6 {[%clk 0:02:45.6]} 7... bxc6 {[%clk 0:03:01.5]} 8. e5 {[%clk 0:02:44.8]}
8... Nd5 {[%clk 0:03:01.7]} 9. Nxd5 {[%clk 0:02:43.9]} 9... cxd5 {[%clk
0:03:02.6]} 10. Bd3 {[%clk 0:02:39.9]} 10... Qc7 {[%clk 0:03:01.9]} 11. Bf4
{[%clk 0:02:37.3]} 11... Rb8 {[%clk 0:02:59.4]} 12. O-O {[%clk 0:02:22.6]} 12...
Be7 {[%clk 0:02:57.9]} 13. Qg4 {[%clk 0:02:21.1]} 13... g5 {[%clk 0:02:48.6]}
14. Bxg5 {[%clk 0:01:55]} 14... Rg8 {[%clk 0:02:47.6]} 15. f4 {[%clk 0:01:33.3]}
15... h6 {[%clk 0:02:46.1]} 16. Qh5 {[%clk 0:01:27.6]} 16... hxg5 {[%clk
0:02:31.8]} 17. fxg5 {[%clk 0:01:26.6]} 17... Rf8 {[%clk 0:02:19.3]} 18. Rxf7
{[%clk 0:01:00.7]} 18... Rxf7 {[%clk 0:02:15.9]} 19. Rf1 {[%clk 0:00:58.9]}
19... Qc5+ {[%clk 0:02:14.9]} 20. Kh1 {[%clk 0:00:56.2]} 20... Rxb2 {[%clk
0:02:05]} 21. Qxf7+ {[%clk 0:00:51.7]} 21... Kd8 {[%clk 0:02:03.7]} 22. g6
{[%clk 0:00:51.9]} 22... Bf8 {[%clk 0:01:19.4]} 23. Qxf8+ {[%clk 0:00:49.8]}
23... Qxf8 {[%clk 0:01:19.4]} 24. Rxf8+ {[%clk 0:00:50]} 24... Ke7 {[%clk
0:01:19.7]} 25. g7 {[%clk 0:00:40]} 25... Rb1+ {[%clk 0:01:18.7]} 26. Bf1 {[%clk
0:00:39.5]} 1-0

[Event "*** Titled Tuesday Blitz"]
[Site "Chess.com"]
[Date "2020.11.24"]
[Round "4"]
[White "KononenkoD"]
[Black "QuintilianoR"]
[Result "0-1"]
[WhiteElo "2489"]
[BlackElo "2670"]
[TimeControl "180+1"]
[EndTime "10:53:26 PST"]
[Termination "QuintilianoR won by checkmate"]

1. e4 {[%clk 0:03:00.9]} 1... c5 {[%clk 0:02:59]} 2. Nf3 {[%clk 0:02:59.6]} 2...
d6 {[%clk 0:02:59.3]} 3. d4 {[%clk 0:03:00.5]} 3... cxd4 {[%clk 0:02:59.7]} 4.
Nxd4 {[%clk 0:03:01.2]} 4... Nf6 {[%clk 0:02:59.3]} 5. Nc3 {[%clk 0:03:00.6]}
5... a6 {[%clk 0:02:58.6]} 6. Bc4 {[%clk 0:03:00.7]} 6... e6 {[%clk 0:02:58]} 7.
Bb3 {[%clk 0:03:00.1]} 7... b5 {[%clk 0:02:57.5]} 8. f4 {[%clk 0:02:56.7]} 8...
Be7 {[%clk 0:02:53.1]} 9. f5 {[%clk 0:02:51.5]} 9... b4 {[%clk 0:02:35]} 10. Na4
{[%clk 0:02:45.4]} 10... e5 {[%clk 0:02:33.7]} 11. Ne2 {[%clk 0:02:45.7]} 11...
Bb7 {[%clk 0:02:15.3]} 12. Be3 {[%clk 0:02:41.4]} 12... Nbd7 {[%clk 0:02:14.8]}
13. c3 {[%clk 0:02:38.9]} 13... a5 {[%clk 0:02:12.8]} 14. Ng3 {[%clk 0:02:30.8]}
14... h5 {[%clk 0:02:08.7]} 15. h4 {[%clk 0:02:29.5]} 15... Ng4 {[%clk
0:01:53.4]} 16. Qf3 {[%clk 0:02:19.5]} 16... Bxh4 {[%clk 0:01:49.2]} 17. O-O
{[%clk 0:02:04.1]} 17... Bg5 {[%clk 0:01:25.3]} 18. Bf2 {[%clk 0:01:50.7]} 18...
Ndf6 {[%clk 0:01:15.7]} 19. Nb6 {[%clk 0:01:39.6]} 19... Nxf2 {[%clk 0:01:12.1]}
20. Nxa8 {[%clk 0:01:29]} 20... N2g4 {[%clk 0:01:02]} 21. Ba4+ {[%clk
0:01:16.2]} 21... Kf8 {[%clk 0:00:59.7]} 22. Qd3 {[%clk 0:01:02.9]} 22... Be3+
{[%clk 0:00:53.4]} 23. Kh1 {[%clk 0:00:59.2]} 23... Nxe4 {[%clk 0:00:50.1]} 24.
Nxe4 {[%clk 0:00:52.4]} 24... Qh4# {[%clk 0:00:47.4]} 0-1

[Event "*** Titled Tuesday Blitz"]
[Site "Chess.com"]
[Date "2020.11.24"]
[Round "4"]
[White "CM_rui"]
[Black "WonderChampion"]
[Result "1-0"]
[WhiteElo "2378"]
[BlackElo "2046"]
[TimeControl "180+1"]
[EndTime "10:53:27 PST"]
[Termination "CM_rui won by resignation"]

1. e4 {[%clk 0:03:00.9]} 1... c5 {[%clk 0:02:56.5]} 2. Nf3 {[%clk 0:02:58.4]}
2... g6 {[%clk 0:02:50]} 3. c4 {[%clk 0:02:58]} 3... Bg7 {[%clk 0:02:43.8]} 4.
d4 {[%clk 0:02:56]} 4... cxd4 {[%clk 0:02:41.8]} 5. Nxd4 {[%clk 0:02:56.9]} 5...
Nc6 {[%clk 0:02:40.9]} 6. Be3 {[%clk 0:02:55.3]} 6... d6 {[%clk 0:02:39.5]} 7.
Nc3 {[%clk 0:02:54.1]} 7... Nf6 {[%clk 0:02:36.8]} 8. Be2 {[%clk 0:02:52.4]}
8... O-O {[%clk 0:02:36.2]} 9. O-O {[%clk 0:02:50.9]} 9... Bd7 {[%clk
0:02:34.2]} 10. Rc1 {[%clk 0:02:49.1]} 10... Rc8 {[%clk 0:02:32.2]} 11. f3
{[%clk 0:02:48.4]} 11... Ne5 {[%clk 0:02:23.2]} 12. b3 {[%clk 0:02:47.5]} 12...
Nc6 {[%clk 0:02:04.4]} 13. Kh1 {[%clk 0:02:41.4]} 13... b6 {[%clk 0:01:55.5]}
14. Qd2 {[%clk 0:02:39.7]} 14... Rb8 {[%clk 0:01:32]} 15. Rfd1 {[%clk 0:02:13]}
15... Qc7 {[%clk 0:01:27.2]} 16. Nd5 {[%clk 0:02:11.4]} 16... Qb7 {[%clk
0:01:17.4]} 17. Bh6 {[%clk 0:01:50.7]} 17... Bxh6 {[%clk 0:01:09.2]} 18. Nxf6+
{[%clk 0:01:46.9]} 18... exf6 {[%clk 0:01:01.4]} 19. Qxh6 {[%clk 0:01:46]} 19...
Rfe8 {[%clk 0:00:49.4]} 20. Nb5 {[%clk 0:01:39.2]} 20... Re6 {[%clk 0:00:36.5]}
21. Nxd6 {[%clk 0:01:34.2]} 21... Qc7 {[%clk 0:00:32.4]} 22. Nxf7 {[%clk
0:01:23.2]} 22... Kxf7 {[%clk 0:00:28]} 23. Qxh7+ {[%clk 0:01:22.6]} 23... Kf8
{[%clk 0:00:26]} 24. Rxd7 {[%clk 0:01:21.7]} 1-0

[Event "*** Titled Tuesday Blitz"]
[Site "Chess.com"]
[Date "2020.11.24"]
[Round "4"]
[White "ShapkinAnatoliy"]
[Black "RD4ever"]
[Result "0-1"]
[WhiteElo "2650"]
[BlackElo "2827"]
[TimeControl "180+1"]
[EndTime "10:53:34 PST"]
[Termination "RD4ever won by resignation"]

1. d4 {[%clk 0:03:00.9]} 1... d5 {[%clk 0:02:55.1]} 2. c4 {[%clk 0:03:00.8]}
2... e6 {[%clk 0:02:54.2]} 3. Nf3 {[%clk 0:03:00.4]} 3... Nf6 {[%clk 0:02:52.8]}
4. g3 {[%clk 0:03:01]} 4... dxc4 {[%clk 0:02:45.2]} 5. Bg2 {[%clk 0:03:01]} 5...
Bd7 {[%clk 0:02:45.8]} 6. Ne5 {[%clk 0:03:00.3]} 6... Bc6 {[%clk 0:02:46.4]} 7.
Nxc6 {[%clk 0:03:00]} 7... Nxc6 {[%clk 0:02:46.9]} 8. O-O {[%clk 0:03:00.2]}
8... Qd7 {[%clk 0:02:46.7]} 9. e3 {[%clk 0:02:59.2]} 9... Rd8 {[%clk 0:02:46.4]}
10. Qa4 {[%clk 0:02:56]} 10... Nb4 {[%clk 0:02:43.5]} 11. Qxd7+ {[%clk
0:02:46.9]} 11... Rxd7 {[%clk 0:02:44.4]} 12. Na3 {[%clk 0:02:44.3]} 12... c5
{[%clk 0:02:44.1]} 13. dxc5 {[%clk 0:02:22.7]} 13... Bxc5 {[%clk 0:02:45]} 14.
Nxc4 {[%clk 0:02:20.6]} 14... Nd3 {[%clk 0:02:45.2]} 15. a3 {[%clk 0:02:04.3]}
15... Ke7 {[%clk 0:02:19.5]} 16. b4 {[%clk 0:01:58.2]} 16... Bb6 {[%clk
0:02:19.1]} 17. Nxb6 {[%clk 0:01:51.6]} 17... axb6 {[%clk 0:02:20]} 18. Rd1
{[%clk 0:01:25]} 18... Ng4 {[%clk 0:01:58.2]} 19. f3 {[%clk 0:01:03.5]} 19...
Nge5 {[%clk 0:01:53.3]} 20. a4 {[%clk 0:00:40.7]} 20... Ra8 {[%clk 0:01:30.8]}
21. b5 {[%clk 0:00:18.6]} 21... Nxc1 {[%clk 0:01:14.8]} 22. Rd5 {[%clk
0:00:18.6]} 22... Rxd5 {[%clk 0:01:13.4]} 0-1

[Event "*** Titled Tuesday Blitz"]
[Site "Chess.com"]
[Date "2020.11.24"]
[Round "4"]
[White "Omk124"]
[Black "kleopl"]
[Result "0-1"]
[WhiteElo "2350"]
[BlackElo "2519"]
[TimeControl "180+1"]
[EndTime "10:53:34 PST"]
[Termination "kleopl won by resignation"]

1. e4 {[%clk 0:03:00.9]} 1... c6 {[%clk 0:02:59.8]} 2. c4 {[%clk 0:03:00.8]}
2... d5 {[%clk 0:03:00.7]} 3. exd5 {[%clk 0:03:00.5]} 3... cxd5 {[%clk
0:03:01.6]} 4. cxd5 {[%clk 0:03:01.4]} 4... Nf6 {[%clk 0:03:02.2]} 5. Nc3 {[%clk
0:03:02.1]} 5... g6 {[%clk 0:03:01]} 6. Nf3 {[%clk 0:03:01.2]} 6... Bg7 {[%clk
0:02:59.7]} 7. Bc4 {[%clk 0:03:01.4]} 7... O-O {[%clk 0:02:58.9]} 8. O-O {[%clk
0:03:01.2]} 8... Bg4 {[%clk 0:02:57.3]} 9. h3 {[%clk 0:03:00.9]} 9... Bxf3
{[%clk 0:02:57.5]} 10. Qxf3 {[%clk 0:03:01.8]} 10... Nbd7 {[%clk 0:02:57.9]} 11.
d3 {[%clk 0:03:01]} 11... Rc8 {[%clk 0:02:54.6]} 12. Be3 {[%clk 0:02:58.1]}
12... a6 {[%clk 0:02:53.8]} 13. a4 {[%clk 0:02:58.1]} 13... Ne5 {[%clk 0:02:47]}
14. Qe2 {[%clk 0:02:57.1]} 14... Ne8 {[%clk 0:02:41.7]} 15. Bd4 {[%clk
0:02:51.8]} 15... Qc7 {[%clk 0:02:26.8]} 16. Rfe1 {[%clk 0:02:24.8]} 16... Nf3+
{[%clk 0:01:56.8]} 17. Qxf3 {[%clk 0:02:24.9]} 17... Bxd4 {[%clk 0:01:56.4]} 18.
d6 {[%clk 0:02:25.3]} 18... Qxd6 {[%clk 0:01:34.5]} 19. Qxb7 {[%clk 0:02:24.1]}
19... Nc7 {[%clk 0:01:27]} 20. Ne4 {[%clk 0:02:21.9]} 20... Qf4 {[%clk
0:01:16.9]} 21. g3 {[%clk 0:02:09.1]} 21... Qe5 {[%clk 0:00:57.7]} 22. Rab1
{[%clk 0:01:57.2]} 22... Rb8 {[%clk 0:00:50.9]} 23. Qc6 {[%clk 0:01:56.7]} 23...
Rfd8 {[%clk 0:00:25.6]} 24. b4 {[%clk 0:01:52.2]} 24... Rb6 {[%clk 0:00:21.4]}
25. Nf6+ {[%clk 0:01:44.9]} 25... exf6 {[%clk 0:00:14.8]} 26. Bxf7+ {[%clk
0:01:40.2]} 26... Kg7 {[%clk 0:00:10.9]} 27. Qxb6 {[%clk 0:01:37.2]} 27... Qxg3+
{[%clk 0:00:10.9]} 28. Kh1 {[%clk 0:01:36.8]} 28... Qxh3+ {[%clk 0:00:10.9]} 29.
Kg1 {[%clk 0:01:37.7]} 29... Bxb6 {[%clk 0:00:10.4]} 0-1

[Event "*** Titled Tuesday Blitz"]
[Site "Chess.com"]
[Date "2020.11.24"]
[Round "4"]
[White "JoliyRoger"]
[Black "GAusal"]
[Result "0-1"]
[WhiteElo "2361"]
[BlackElo "2030"]
[TimeControl "180+1"]
[EndTime "10:53:35 PST"]
[Termination "GAusal won by resignation"]

1. Nf3 {[%clk 0:02:55.4]} 1... d5 {[%clk 0:02:58.7]} 2. c4 {[%clk 0:02:54.3]}
2... d4 {[%clk 0:02:57.6]} 3. d3 {[%clk 0:02:54.2]} 3... c5 {[%clk 0:02:53.8]}
4. e3 {[%clk 0:02:54]} 4... Nc6 {[%clk 0:02:53.4]} 5. exd4 {[%clk 0:02:54.2]}
5... cxd4 {[%clk 0:02:49.8]} 6. g3 {[%clk 0:02:53.4]} 6... e5 {[%clk 0:02:45.7]}
7. Bg2 {[%clk 0:02:54.3]} 7... Bd6 {[%clk 0:02:41.9]} 8. O-O {[%clk 0:02:54.6]}
8... Nf6 {[%clk 0:02:38.9]} 9. b4 {[%clk 0:02:53.3]} 9... Nxb4 {[%clk
0:02:34.5]} 10. Nxe5 {[%clk 0:02:49.3]} 10... Bxe5 {[%clk 0:02:29.7]} 11. Re1
{[%clk 0:02:49.9]} 11... O-O {[%clk 0:02:21.5]} 12. Rxe5 {[%clk 0:02:48.2]}
12... Bg4 {[%clk 0:02:19.8]} 13. Qb3 {[%clk 0:02:39.2]} 13... Nc6 {[%clk
0:02:19.4]} 14. Re1 {[%clk 0:02:35.7]} 14... Re8 {[%clk 0:02:16]} 15. Bd2 {[%clk
0:02:30.1]} 15... Rxe1+ {[%clk 0:02:10.6]} 16. Bxe1 {[%clk 0:02:30.2]} 16... Qd7
{[%clk 0:02:07.7]} 17. Nd2 {[%clk 0:02:26.8]} 17... Bf5 {[%clk 0:02:03.8]} 18.
Rb1 {[%clk 0:02:20.1]} 18... Re8 {[%clk 0:01:57.4]} 19. c5 {[%clk 0:01:48.6]}
19... Qe7 {[%clk 0:01:49]} 20. Qc2 {[%clk 0:01:32.7]} 20... Nb4 {[%clk 0:01:42]}
21. Qa4 {[%clk 0:01:02.6]} 21... Nxd3 {[%clk 0:01:37.2]} 22. Nf3 {[%clk
0:01:03.1]} 22... Nxe1 {[%clk 0:01:28.4]} 23. Rxe1 {[%clk 0:00:58.8]} 23...
Qxe1+ {[%clk 0:01:27]} 24. Nxe1 {[%clk 0:00:56.9]} 24... Rxe1+ {[%clk 0:01:23]}
0-1

[Event "*** Titled Tuesday Blitz"]
[Site "Chess.com"]
[Date "2020.11.24"]
[Round "4"]
[White "mikheeva86"]
[Black "Soltan49"]
[Result "0-1"]
[WhiteElo "1965"]
[BlackElo "2240"]
[TimeControl "180+1"]
[EndTime "10:53:42 PST"]
[Termination "Soltan49 won on time"]

1. e4 {[%clk 0:02:47.4]} 1... e6 {[%clk 0:02:55.3]} 2. d4 {[%clk 0:02:45.7]}
2... d5 {[%clk 0:02:55.7]} 3. e5 {[%clk 0:02:45.3]} 3... c5 {[%clk 0:02:54.8]}
4. c3 {[%clk 0:02:45.6]} 4... Nc6 {[%clk 0:02:55.3]} 5. Nf3 {[%clk 0:02:45.5]}
5... f6 {[%clk 0:02:55.5]} 6. Bd3 {[%clk 0:02:30.3]} 6... g6 {[%clk 0:02:46.1]}
7. exf6 {[%clk 0:02:24.3]} 7... Nxf6 {[%clk 0:02:45.9]} 8. O-O {[%clk
0:02:22.8]} 8... Bg7 {[%clk 0:02:43]} 9. Re1 {[%clk 0:02:14.8]} 9... O-O {[%clk
0:02:42.8]} 10. Bg5 {[%clk 0:02:03]} 10... Qb6 {[%clk 0:02:40.3]} 11. Qb3 {[%clk
0:00:56.2]} 11... Qxb3 {[%clk 0:02:39.9]} 12. axb3 {[%clk 0:00:55.5]} 12... Bd7
{[%clk 0:02:32.5]} 13. dxc5 {[%clk 0:00:52.7]} 13... Rae8 {[%clk 0:02:31.8]} 14.
b4 {[%clk 0:00:51.4]} 14... a6 {[%clk 0:02:30.2]} 15. b5 {[%clk 0:00:43.7]}
15... axb5 {[%clk 0:02:31.1]} 16. Bxb5 {[%clk 0:00:42.9]} 16... Ne4 {[%clk
0:02:28.7]} 17. Be3 {[%clk 0:00:37.2]} 17... Ne5 {[%clk 0:02:17]} 18. Bxd7
{[%clk 0:00:30.6]} 18... Nxd7 {[%clk 0:02:17.9]} 19. Nbd2 {[%clk 0:00:27]} 19...
Ndxc5 {[%clk 0:02:16.6]} 20. Bxc5 {[%clk 0:00:21.1]} 20... Nxc5 {[%clk
0:02:16.2]} 21. Ra5 {[%clk 0:00:18.9]} 21... Nd3 {[%clk 0:02:16]} 22. Rb1 {[%clk
0:00:17.8]} 22... Nxb2 {[%clk 0:02:11.7]} 23. Rxb2 {[%clk 0:00:15.2]} 23... Bxc3
{[%clk 0:02:11.7]} 24. Rab5 {[%clk 0:00:15.5]} 24... Bxb2 {[%clk 0:02:11.5]} 25.
Rxb2 {[%clk 0:00:16]} 25... Rf7 {[%clk 0:02:09.4]} 26. Kf1 {[%clk 0:00:14.4]}
26... e5 {[%clk 0:02:09.3]} 27. Ng5 {[%clk 0:00:13.5]} 27... Rc7 {[%clk
0:02:07.9]} 28. Ndf3 {[%clk 0:00:10.8]} 28... Kg7 {[%clk 0:02:04.6]} 29. Rb6
{[%clk 0:00:07.3]} 29... Rce7 {[%clk 0:02:00.2]} 30. Ke2 {[%clk 0:00:04.1]}
30... h6 {[%clk 0:02:00.3]} 31. Nh3 {[%clk 0:00:03.2]} 31... g5 {[%clk
0:02:00.8]} 32. g4 {[%clk 0:00:02.6]} 32... Rc7 {[%clk 0:01:54.8]} 33. Nhg1
{[%clk 0:00:02]} 33... Ra8 {[%clk 0:01:48.6]} 0-1

[Event "*** Titled Tuesday Blitz"]
[Site "Chess.com"]
[Date "2020.11.24"]
[Round "4"]
[White "pedromartinez91"]
[Black "VerdeNotte"]
[Result "0-1"]
[WhiteElo "2526"]
[BlackElo "2903"]
[TimeControl "180+1"]
[EndTime "10:53:44 PST"]
[Termination "VerdeNotte won by resignation"]

1. e4 {[%clk 0:03:00.4]} 1... c5 {[%clk 0:02:59]} 2. Nf3 {[%clk 0:03:00.6]} 2...
g6 {[%clk 0:02:58.8]} 3. d4 {[%clk 0:03:00.2]} 3... cxd4 {[%clk 0:02:59.7]} 4.
Qxd4 {[%clk 0:02:58.6]} 4... Nf6 {[%clk 0:03:00]} 5. Bb5 {[%clk 0:02:57.4]} 5...
a6 {[%clk 0:03:00.2]} 6. e5 {[%clk 0:02:57.1]} 6... axb5 {[%clk 0:03:00.6]} 7.
exf6 {[%clk 0:02:57.4]} 7... e6 {[%clk 0:03:01.1]} 8. O-O {[%clk 0:02:46]} 8...
Nc6 {[%clk 0:03:00.3]} 9. Qd3 {[%clk 0:02:38.5]} 9... b4 {[%clk 0:02:56]} 10. c4
{[%clk 0:02:30.6]} 10... Qxf6 {[%clk 0:02:51.7]} 11. Nbd2 {[%clk 0:02:23.8]}
11... Qf5 {[%clk 0:02:39.1]} 12. Qe2 {[%clk 0:02:02.4]} 12... Be7 {[%clk
0:02:30.7]} 13. Ne4 {[%clk 0:02:01.1]} 13... O-O {[%clk 0:02:27]} 14. Bg5 {[%clk
0:01:49.2]} 14... Bxg5 {[%clk 0:02:21.5]} 15. Nexg5 {[%clk 0:01:49.3]} 15... d5
{[%clk 0:02:18.8]} 16. h4 {[%clk 0:01:23.4]} 16... h6 {[%clk 0:02:10.7]} 17. Nh3
{[%clk 0:01:23.3]} 17... d4 {[%clk 0:02:10.4]} 18. Rfe1 {[%clk 0:01:20]} 18...
Rd8 {[%clk 0:02:06.6]} 19. Qd2 {[%clk 0:01:17.7]} 19... Kg7 {[%clk 0:02:05.1]}
20. Nf4 {[%clk 0:01:08.3]} 20... e5 {[%clk 0:01:51.5]} 21. Nd5 {[%clk
0:01:07.8]} 21... Be6 {[%clk 0:01:51.7]} 22. Nxb4 {[%clk 0:01:05.7]} 22... Nxb4
{[%clk 0:01:22.6]} 23. Rxe5 {[%clk 0:00:51.4]} 23... Rxa2 {[%clk 0:01:21.5]} 24.
Rae1 {[%clk 0:00:33.1]} 24... Qc2 {[%clk 0:01:16.5]} 25. Qxb4 {[%clk 0:00:33]}
25... Rxb2 {[%clk 0:01:15.5]} 0-1

[Event "*** Titled Tuesday Blitz"]
[Site "Chess.com"]
[Date "2020.11.24"]
[Round "4"]
[White "LiamVrolijk"]
[Black "Zhani-Z"]
[Result "1-0"]
[WhiteElo "2799"]
[BlackElo "2518"]
[TimeControl "180+1"]
[EndTime "10:53:45 PST"]
[Termination "LiamVrolijk won by resignation"]

1. d4 {[%clk 0:02:59.6]} 1... Nf6 {[%clk 0:02:59.4]} 2. Nf3 {[%clk 0:02:59.4]}
2... d5 {[%clk 0:02:58.7]} 3. Bf4 {[%clk 0:02:58.1]} 3... e6 {[%clk 0:02:53.8]}
4. e3 {[%clk 0:02:58.1]} 4... c5 {[%clk 0:02:52.6]} 5. c3 {[%clk 0:02:56.9]}
5... Bd6 {[%clk 0:02:51.8]} 6. Nbd2 {[%clk 0:02:56.3]} 6... Bxf4 {[%clk
0:02:27.9]} 7. exf4 {[%clk 0:02:57.2]} 7... b6 {[%clk 0:02:26.8]} 8. Bd3 {[%clk
0:02:55.7]} 8... O-O {[%clk 0:02:25.8]} 9. Qe2 {[%clk 0:02:55.6]} 9... a5 {[%clk
0:02:14.6]} 10. O-O {[%clk 0:02:55.5]} 10... Ba6 {[%clk 0:02:14]} 11. Bxa6
{[%clk 0:02:55.7]} 11... Nxa6 {[%clk 0:02:13.4]} 12. Ne5 {[%clk 0:02:55.9]}
12... Qc7 {[%clk 0:02:12.2]} 13. Ndf3 {[%clk 0:02:52.9]} 13... Nb8 {[%clk
0:02:08.6]} 14. Qb5 {[%clk 0:02:49.3]} 14... Rc8 {[%clk 0:02:03.7]} 15. Ng5
{[%clk 0:02:45.3]} 15... Rf8 {[%clk 0:01:58.3]} 16. Rfe1 {[%clk 0:02:43.3]}
16... Nbd7 {[%clk 0:01:55]} 17. Rad1 {[%clk 0:02:19.7]} 17... Rae8 {[%clk
0:01:48.6]} 18. g3 {[%clk 0:02:17]} 18... h6 {[%clk 0:01:47.5]} 19. Ngf3 {[%clk
0:02:16.3]} 19... Ne4 {[%clk 0:01:44]} 20. Qxd7 {[%clk 0:02:15.8]} 20... Qb8
{[%clk 0:01:05.9]} 21. Qb5 {[%clk 0:02:12.8]} 21... Re7 {[%clk 0:00:57.5]} 22.
Nc6 {[%clk 0:02:10.9]} 22... Qe8 {[%clk 0:00:55.5]} 23. Nxe7+ {[%clk 0:02:11.1]}
23... Qxe7 {[%clk 0:00:56.4]} 24. Qxb6 {[%clk 0:02:10.6]} 24... c4 {[%clk
0:00:55.6]} 25. Qc6 {[%clk 0:02:06.1]} 25... Rb8 {[%clk 0:00:55.2]} 26. Re2
{[%clk 0:02:03.9]} 26... Qa7 {[%clk 0:00:52.1]} 27. Qa4 {[%clk 0:02:03.3]} 27...
Qb6 {[%clk 0:00:51.1]} 28. Ne5 {[%clk 0:02:02]} 28... Qc7 {[%clk 0:00:50.6]} 29.
Rxe4 {[%clk 0:01:59.6]} 29... dxe4 {[%clk 0:00:50]} 30. Qxc4 {[%clk 0:02:00.2]}
30... Qb7 {[%clk 0:00:49.1]} 31. b3 {[%clk 0:01:57.7]} 31... Rc8 {[%clk
0:00:48.7]} 32. Qf1 {[%clk 0:01:49.7]} 32... Rxc3 {[%clk 0:00:47.4]} 33. Rc1
{[%clk 0:01:50.3]} 33... Qc7 {[%clk 0:00:44]} 34. Nc4 {[%clk 0:01:48.3]} 34...
Rxc1 {[%clk 0:00:37.3]} 35. Qxc1 {[%clk 0:01:48.4]} 35... h5 {[%clk 0:00:36.1]}
36. Qe1 {[%clk 0:01:46.6]} 36... Qc6 {[%clk 0:00:34.8]} 37. Qxa5 {[%clk
0:01:46.2]} 37... Qd6 {[%clk 0:00:28.2]} 38. Qe5 {[%clk 0:01:43.4]} 1-0